[Event "Titled Tuesday Blitz February 21 Early 2023"]
[White "Silva, Pedro Gil Ferreira Da"]
[Black "Dixit, Nikhil"]
[WhiteFideId "1946102"]
[BlackFideId "5059534"]
[WhiteElo "2227"]
[BlackElo "2257"]
[Result "0-1"]
[Round "06"]
[TimeControl "180+2"]
[Date "2023.02.21"]
[WhiteClock "0:00:09"]
[BlackClock "0:00:15"]

1. c4 {[%clk 0:03:00]}  Nf6 {[%clk 0:02:59]} 2. Nc3 {[%clk 0:02:58]}  g6 {[%clk 0:03:00]} 3. Nf3 {[%clk 0:02:57]}  Bg7 {[%clk 0:03:00]} 4. g3 {[%clk 0:02:57]}  O-O {[%clk 0:03:00]} 5. Bg2 {[%clk 0:02:57]}  d6 {[%clk 0:03:01]} 6. d4 {[%clk 0:02:58]}  Nbd7 {[%clk 0:02:59]} 7. O-O {[%clk 0:02:58]}  e5 {[%clk 0:02:57]} 8. b3 {[%clk 0:02:43]}  a6 {[%clk 0:02:47]} 9. Bb2 {[%clk 0:02:42]}  Rb8 {[%clk 0:02:45]} 10. Rc1 {[%clk 0:02:19]}  b5 {[%clk 0:02:42]} 11. cxb5 {[%clk 0:02:20]}  axb5 {[%clk 0:02:43]} 12. dxe5 {[%clk 0:02:02]}  dxe5 {[%clk 0:02:38]} 13. Ng5 {[%clk 0:01:59]}  Bb7 {[%clk 0:02:31]} 14. Bxb7 {[%clk 0:01:57]}  Rxb7 {[%clk 0:02:32]} 15. Nge4 {[%clk 0:01:54]}  b4 {[%clk 0:02:26]} 16. Nxf6+ {[%clk 0:01:51]}  Nxf6 {[%clk 0:02:27]} 17. Na4 {[%clk 0:01:51]}  Qa8 {[%clk 0:02:22]} 18. Bxe5 {[%clk 0:01:48]}  Re8 {[%clk 0:02:15]} 19. Bxf6 {[%clk 0:01:38]}  Bxf6 {[%clk 0:02:16]} 20. e3 {[%clk 0:01:38]}  Ra7 {[%clk 0:02:02]} 21. Qd7 {[%clk 0:01:31]}  Be5 {[%clk 0:01:57]} 22. Rfd1 {[%clk 0:01:29]}  Bd6 {[%clk 0:01:51]} 23. Qc6 {[%clk 0:01:17]}  Qxc6 {[%clk 0:01:40]} 24. Rxc6 {[%clk 0:01:17]}  h5 {[%clk 0:01:38]} 25. h4 {[%clk 0:01:16]}  Re5 {[%clk 0:01:37]} 26. Rc4 {[%clk 0:01:15]}  Rea5 {[%clk 0:01:36]} 27. Rdd4 {[%clk 0:01:03]}  Kg7 {[%clk 0:01:35]} 28. Kg2 {[%clk 0:01:03]}  Rf5 {[%clk 0:01:34]} 29. Rc2 {[%clk 0:00:56]}  Rfa5 {[%clk 0:01:20]} 30. Rcd2 {[%clk 0:00:54]}  R5a6 {[%clk 0:01:19]} 31. Rd5 {[%clk 0:00:53]}  Kg8 {[%clk 0:01:12]} 32. e4 {[%clk 0:00:54]}  Ra5 {[%clk 0:01:09]} 33. Rxa5 {[%clk 0:00:52]}  Rxa5 {[%clk 0:01:10]} 34. Rd5 {[%clk 0:00:53]}  Rxd5 {[%clk 0:00:50]} 35. exd5 {[%clk 0:00:53]}  Kg7 {[%clk 0:00:51]} 36. Kf3 {[%clk 0:00:53]}  Kf6 {[%clk 0:00:49]} 37. Ke4 {[%clk 0:00:52]}  g5 {[%clk 0:00:50]} 38. hxg5+ {[%clk 0:00:48]}  Kxg5 {[%clk 0:00:51]} 39. Nb2 {[%clk 0:00:47]}  f5+ {[%clk 0:00:48]} 40. Kf3 {[%clk 0:00:46]}  f4 {[%clk 0:00:43]} 41. Nc4 {[%clk 0:00:44]}  fxg3 {[%clk 0:00:40]} 42. fxg3 {[%clk 0:00:45]}  Kf5 {[%clk 0:00:40]} 43. Nd2 {[%clk 0:00:31]}  Ke5 {[%clk 0:00:39]} 44. Ne4 {[%clk 0:00:32]}  Kxd5 {[%clk 0:00:38]} 45. Nf6+ {[%clk 0:00:32]}  Kd4 {[%clk 0:00:38]} 46. Nxh5 {[%clk 0:00:33]}  Kc3 {[%clk 0:00:39]} 47. Nf6 {[%clk 0:00:26]}  Kb2 {[%clk 0:00:38]} 48. Ne4 {[%clk 0:00:24]}  Bf8 {[%clk 0:00:36]} 49. g4 {[%clk 0:00:21]}  Kxa2 {[%clk 0:00:36]} 50. Nd2 {[%clk 0:00:20]}  Bh6 {[%clk 0:00:35]} 51. Ke2 {[%clk 0:00:12]}  Kb2 {[%clk 0:00:32]} 52. Kd3 {[%clk 0:00:12]}  c5 {[%clk 0:00:30]} 53. Nc4+ {[%clk 0:00:12]}  Kxb3 {[%clk 0:00:30]} 54. Nd6 {[%clk 0:00:12]}  Ka2 {[%clk 0:00:28]} 55. Nc4 {[%clk 0:00:11]}  b3 {[%clk 0:00:28]} 56. Ke4 {[%clk 0:00:11]}  Kb1 {[%clk 0:00:17]} 57. Kd5 {[%clk 0:00:10]}  Kc2 {[%clk 0:00:17]} 58. Kxc5 {[%clk 0:00:10]}  Kc3 {[%clk 0:00:17]} 59. Kb5 {[%clk 0:00:10]}  Bf8 {[%clk 0:00:18]} 60. g5 {[%clk 0:00:09]}  Bg7 {[%clk 0:00:18]} 61. g6 {[%clk 0:00:10]}  Bf8 {[%clk 0:00:18]} 62. Na3 {[%clk 0:00:08]}  b2 {[%clk 0:00:17]} 63. Ka4 {[%clk 0:00:09]}  Bxa3 {[%clk 0:00:16]} 64. Kxa3 {[%clk 0:00:08]}  b1=Q {[%clk 0:00:16]} 65. g7 {[%clk 0:00:09]}  Qb3# {[%clk 0:00:15]} 0-1


[Site "https://www.chess.com"]

[Event "Titled Tuesday Blitz February 21 Early 2023"]
[White "Krzywda, Andrzej"]
[Black "WindWhistler11"]
[WhiteFideId "1114565"]
[WhiteElo "2223"]
[BlackElo "2536"]
[Result "1-0"]
[Round "06"]
[TimeControl "180+2"]
[Date "2023.02.21"]
[WhiteClock "0:00:28"]
[BlackClock "0:00:06"]

1. e4 {[%clk 0:03:00]}  e6 {[%clk 0:02:59]} 2. d4 {[%clk 0:02:59]}  d5 {[%clk 0:02:58]} 3. e5 {[%clk 0:02:59]}  c5 {[%clk 0:02:58]} 4. c3 {[%clk 0:03:00]}  Nc6 {[%clk 0:02:57]} 5. Nf3 {[%clk 0:03:00]}  Bd7 {[%clk 0:02:56]} 6. a3 {[%clk 0:02:59]}  c4 {[%clk 0:02:42]} 7. h4 {[%clk 0:02:51]}  Nge7 {[%clk 0:02:35]} 8. h5 {[%clk 0:02:50]}  h6 {[%clk 0:02:35]} 9. Be2 {[%clk 0:02:45]}  Qc7 {[%clk 0:02:34]} 10. Qd2 {[%clk 0:02:45]}  Na5 {[%clk 0:02:33]} 11. Bd1 {[%clk 0:02:45]}  Nc8 {[%clk 0:02:30]} 12. Qf4 {[%clk 0:02:44]}  Nb6 {[%clk 0:02:29]} 13. Rh3 {[%clk 0:02:31]}  Ba4 {[%clk 0:02:18]} 14. Nfd2 {[%clk 0:02:20]}  Bxd1 {[%clk 0:02:15]} 15. Kxd1 {[%clk 0:02:21]}  O-O-O {[%clk 0:02:12]} 16. Rf3 {[%clk 0:02:20]}  Rd7 {[%clk 0:02:12]} 17. a4 {[%clk 0:02:18]}  Kb8 {[%clk 0:02:06]} 18. Na3 {[%clk 0:02:12]}  Nb3 {[%clk 0:01:28]} 19. Nb5 {[%clk 0:01:55]}  Qc6 {[%clk 0:01:23]} 20. Ra2 {[%clk 0:01:49]}  a6 {[%clk 0:01:11]} 21. a5 {[%clk 0:01:43]}  Nc8 {[%clk 0:01:03]} 22. Na3 {[%clk 0:01:35]}  Nxa5 {[%clk 0:01:03]} 23. Ndb1 {[%clk 0:01:23]}  Qa4+ {[%clk 0:00:51]} 24. Ke1 {[%clk 0:01:15]}  Na7 {[%clk 0:00:43]} 25. Qd2 {[%clk 0:01:03]}  Qb3 {[%clk 0:00:41]} 26. Ra1 {[%clk 0:01:01]}  Qb6 {[%clk 0:00:41]} 27. Qc2 {[%clk 0:00:55]}  Nb3 {[%clk 0:00:41]} 28. Ra2 {[%clk 0:00:55]}  Nc6 {[%clk 0:00:40]} 29. Nd2 {[%clk 0:00:55]}  Rg8 {[%clk 0:00:36]} 30. Qh7 {[%clk 0:00:42]}  Ne7 {[%clk 0:00:30]} 31. Kd1 {[%clk 0:00:36]}  Nxd2 {[%clk 0:00:18]} 32. Kxd2 {[%clk 0:00:29]}  Qb3 {[%clk 0:00:18]} 33. Ra1 {[%clk 0:00:29]}  b5 {[%clk 0:00:06]} 34. Nc2 {[%clk 0:00:28]} 1-0


[Site "https://www.chess.com"]

[Event "Titled Tuesday Blitz February 21 Early 2023"]
[White "Afanasieva, Alexandra"]
[Black "Vovk, Orest"]
[WhiteFideId "34126926"]
[BlackFideId "14113490"]
[WhiteElo "1857"]
[BlackElo "2315"]
[Result "0-1"]
[Round "06"]
[TimeControl "180+2"]
[Date "2023.02.21"]
[WhiteClock "0:00:03"]
[BlackClock "0:00:39"]

1. e4 {[%clk 0:02:58]}  g5 {[%clk 0:02:35]} 2. d4 {[%clk 0:02:58]}  g4 {[%clk 0:02:16]} 3. Nc3 {[%clk 0:02:51]}  Bg7 {[%clk 0:02:14]} 4. Be3 {[%clk 0:02:48]}  d6 {[%clk 0:02:02]} 5. Qd2 {[%clk 0:02:47]}  c6 {[%clk 0:02:01]} 6. Be2 {[%clk 0:02:43]}  Qa5 {[%clk 0:01:56]} 7. h3 {[%clk 0:02:41]}  h5 {[%clk 0:01:55]} 8. hxg4 {[%clk 0:02:39]}  hxg4 {[%clk 0:01:55]} 9. Rxh8 {[%clk 0:02:38]}  Bxh8 {[%clk 0:01:56]} 10. f3 {[%clk 0:02:28]}  Nf6 {[%clk 0:01:46]} 11. O-O-O {[%clk 0:02:20]}  b5 {[%clk 0:01:46]} 12. e5 {[%clk 0:01:37]}  b4 {[%clk 0:01:40]} 13. exf6 {[%clk 0:01:08]}  bxc3 {[%clk 0:01:40]} 14. Qxc3 {[%clk 0:01:09]}  Qxc3 {[%clk 0:01:40]} 15. bxc3 {[%clk 0:01:10]}  gxf3 {[%clk 0:01:36]} 16. Bxf3 {[%clk 0:00:53]}  Bxf6 {[%clk 0:01:36]} 17. d5 {[%clk 0:00:43]}  c5 {[%clk 0:01:33]} 18. Bxc5 {[%clk 0:00:42]}  Bxc3 {[%clk 0:01:23]} 19. Ne2 {[%clk 0:00:01]}  Bf6 {[%clk 0:01:19]} 20. Rh1 {[%clk 0:00:02]}  Nd7 {[%clk 0:01:09]} 21. Bd4 {[%clk 0:00:02]}  Ne5 {[%clk 0:01:08]} 22. Bxe5 {[%clk 0:00:02]}  Bxe5 {[%clk 0:01:08]} 23. Be4 {[%clk 0:00:03]}  Ba6 {[%clk 0:01:03]} 24. Kd2 {[%clk 0:00:03]}  Rb8 {[%clk 0:00:58]} 25. Bd3 {[%clk 0:00:04]}  Bxd3 {[%clk 0:00:53]} 26. Kxd3 {[%clk 0:00:04]}  Rb2 {[%clk 0:00:53]} 27. Rh5 {[%clk 0:00:01]}  Rxa2 {[%clk 0:00:50]} 28. Rh4 {[%clk 0:00:01]}  Ra5 {[%clk 0:00:44]} 29. Rb4 {[%clk 0:00:02]}  Rxd5+ {[%clk 0:00:42]} 30. Ke4 {[%clk 0:00:03]}  Rc5 {[%clk 0:00:39]} 0-1


[Site "https://www.chess.com"]

[Event "Titled Tuesday Blitz February 21 Early 2023"]
[White "Potapova, Margarita"]
[Black "Fernandez Siles, Luis"]
[WhiteFideId "14126869"]
[BlackFideId "2209420"]
[WhiteElo "2104"]
[BlackElo "2218"]
[Result "1-0"]
[Round "06"]
[TimeControl "180+2"]
[Date "2023.02.21"]
[WhiteClock "0:00:13"]
[BlackClock "0:00:13"]

1. Nf3 {[%clk 0:03:00]}  Nf6 {[%clk 0:02:59]} 2. c4 {[%clk 0:02:59]}  g6 {[%clk 0:02:59]} 3. g3 {[%clk 0:02:37]}  Bg7 {[%clk 0:02:57]} 4. Bg2 {[%clk 0:02:37]}  O-O {[%clk 0:02:57]} 5. O-O {[%clk 0:02:38]}  d6 {[%clk 0:02:57]} 6. d4 {[%clk 0:02:37]}  c6 {[%clk 0:02:57]} 7. Nc3 {[%clk 0:02:33]}  Qa5 {[%clk 0:02:56]} 8. e4 {[%clk 0:02:31]}  e5 {[%clk 0:02:55]} 9. Re1 {[%clk 0:02:20]}  Bg4 {[%clk 0:02:51]} 10. h3 {[%clk 0:02:20]}  Bxf3 {[%clk 0:02:50]} 11. Bxf3 {[%clk 0:02:21]}  Nbd7 {[%clk 0:02:42]} 12. Be3 {[%clk 0:02:17]}  exd4 {[%clk 0:02:35]} 13. Bxd4 {[%clk 0:02:15]}  Ne5 {[%clk 0:02:35]} 14. Be2 {[%clk 0:02:09]}  Rad8 {[%clk 0:02:17]} 15. a3 {[%clk 0:02:08]}  c5 {[%clk 0:02:10]} 16. Be3 {[%clk 0:02:07]}  Nc6 {[%clk 0:02:10]} 17. Bf1 {[%clk 0:02:03]}  Nd7 {[%clk 0:02:07]} 18. Rb1 {[%clk 0:02:00]}  Nd4 {[%clk 0:02:05]} 19. b4 {[%clk 0:02:00]}  Qc7 {[%clk 0:02:04]} 20. Nd5 {[%clk 0:02:00]}  Qb8 {[%clk 0:02:03]} 21. Bg5 {[%clk 0:01:53]}  f6 {[%clk 0:01:53]} 22. Be3 {[%clk 0:01:53]}  f5 {[%clk 0:01:37]} 23. Bg5 {[%clk 0:01:53]}  Rde8 {[%clk 0:01:35]} 24. Bg2 {[%clk 0:01:45]}  fxe4 {[%clk 0:01:29]} 25. Bxe4 {[%clk 0:01:45]}  Ne5 {[%clk 0:01:29]} 26. f4 {[%clk 0:01:34]}  Nef3+ {[%clk 0:01:10]} 27. Qxf3 {[%clk 0:01:06]}  Nxf3+ {[%clk 0:01:08]} 28. Bxf3 {[%clk 0:01:07]}  Bd4+ {[%clk 0:01:06]} 29. Kg2 {[%clk 0:01:07]}  Rxe1 {[%clk 0:00:54]} 30. Rxe1 {[%clk 0:01:06]}  Re8 {[%clk 0:00:55]} 31. Ne7+ {[%clk 0:00:57]}  Kg7 {[%clk 0:00:48]} 32. f5 {[%clk 0:00:56]}  Bf6 {[%clk 0:00:43]} 33. Bxf6+ {[%clk 0:00:54]}  Kxf6 {[%clk 0:00:44]} 34. Nd5+ {[%clk 0:00:54]}  Kf7 {[%clk 0:00:43]} 35. Rf1 {[%clk 0:00:54]}  g5 {[%clk 0:00:36]} 36. Bh5+ {[%clk 0:00:52]}  Kf8 {[%clk 0:00:36]} 37. f6 {[%clk 0:00:40]}  Re4 {[%clk 0:00:30]} 38. b5 {[%clk 0:00:36]}  Qd8 {[%clk 0:00:28]} 39. Rf5 {[%clk 0:00:35]}  Qa5 {[%clk 0:00:27]} 40. Rf2 {[%clk 0:00:24]}  Qxa3 {[%clk 0:00:24]} 41. Bf3 {[%clk 0:00:23]}  Re5 {[%clk 0:00:23]} 42. Bg4 {[%clk 0:00:18]}  Qd3 {[%clk 0:00:21]} 43. f7 {[%clk 0:00:11]}  Qxc4 {[%clk 0:00:19]} 44. Nf6 {[%clk 0:00:11]}  Re7 {[%clk 0:00:13]} 45. Nxh7+ {[%clk 0:00:11]}  Kg7 {[%clk 0:00:13]} 46. f8=Q+ {[%clk 0:00:12]}  Kxh7 {[%clk 0:00:13]} 47. Qxe7+ {[%clk 0:00:13]} 1-0


[Site "https://www.chess.com"]

[Event "Titled Tuesday Blitz February 21 Early 2023"]
[White "Vaibhav Jayant Raut"]
[Black "Lehtosaari, Mauri"]
[WhiteFideId "5089034"]
[BlackFideId "501999"]
[WhiteElo "2237"]
[BlackElo "2176"]
[Result "1-0"]
[Round "06"]
[TimeControl "180+2"]
[Date "2023.02.21"]
[WhiteClock "0:00:49"]
[BlackClock "0:00:47"]

1. d4 {[%clk 0:03:00]}  d5 {[%clk 0:03:00]} 2. Bf4 {[%clk 0:02:58]}  c5 {[%clk 0:02:58]} 3. e3 {[%clk 0:02:58]}  Nc6 {[%clk 0:02:58]} 4. Nf3 {[%clk 0:02:57]}  Nf6 {[%clk 0:02:54]} 5. Nbd2 {[%clk 0:02:57]}  Bg4 {[%clk 0:02:49]} 6. c3 {[%clk 0:02:54]}  e6 {[%clk 0:02:47]} 7. Bb5 {[%clk 0:02:54]}  Qb6 {[%clk 0:02:47]} 8. Qa4 {[%clk 0:02:24]}  Nd7 {[%clk 0:02:43]} 9. O-O {[%clk 0:02:18]}  Be7 {[%clk 0:02:42]} 10. h3 {[%clk 0:02:17]}  Bxf3 {[%clk 0:02:40]} 11. Nxf3 {[%clk 0:02:18]}  O-O {[%clk 0:02:41]} 12. Rfe1 {[%clk 0:02:15]}  a6 {[%clk 0:02:19]} 13. Bf1 {[%clk 0:02:06]}  Nf6 {[%clk 0:02:14]} 14. Qc2 {[%clk 0:01:52]}  Rac8 {[%clk 0:02:13]} 15. Qb3 {[%clk 0:01:48]}  Qxb3 {[%clk 0:02:06]} 16. axb3 {[%clk 0:01:49]}  cxd4 {[%clk 0:02:06]} 17. exd4 {[%clk 0:01:48]}  Rfd8 {[%clk 0:02:04]} 18. Bd3 {[%clk 0:01:47]}  h6 {[%clk 0:02:04]} 19. b4 {[%clk 0:01:46]}  Bd6 {[%clk 0:02:04]} 20. Bxd6 {[%clk 0:01:43]}  Rxd6 {[%clk 0:02:04]} 21. b5 {[%clk 0:01:43]}  axb5 {[%clk 0:02:02]} 22. Bxb5 {[%clk 0:01:44]}  Rdd8 {[%clk 0:01:59]} 23. Bxc6 {[%clk 0:01:41]}  bxc6 {[%clk 0:01:59]} 24. Ra7 {[%clk 0:01:39]}  Rd7 {[%clk 0:01:46]} 25. Rea1 {[%clk 0:01:38]}  c5 {[%clk 0:01:41]} 26. dxc5 {[%clk 0:01:24]}  Rxc5 {[%clk 0:01:40]} 27. Ne5 {[%clk 0:01:23]}  Rdc7 {[%clk 0:01:26]} 28. Ra8+ {[%clk 0:01:14]}  Kh7 {[%clk 0:01:26]} 29. Rf8 {[%clk 0:01:10]}  Rb5 {[%clk 0:01:09]} 30. Raa8 {[%clk 0:01:03]}  g6 {[%clk 0:01:08]} 31. Nxf7 {[%clk 0:00:58]}  Rxb2 {[%clk 0:00:57]} 32. Ne5 {[%clk 0:00:51]}  Rb1+ {[%clk 0:00:46]} 33. Kh2 {[%clk 0:00:50]}  Rb2 {[%clk 0:00:47]} 34. Rxf6 {[%clk 0:00:49]} 1-0


[Site "https://www.chess.com"]

[Event "Titled Tuesday Blitz February 21 Early 2023"]
[White "Averjanov, Alexey"]
[Black "Jaskolka, Tomasz"]
[WhiteFideId "14109867"]
[BlackFideId "1170791"]
[WhiteElo "2399"]
[BlackElo "2238"]
[Result "0-1"]
[Round "06"]
[TimeControl "180+2"]
[Date "2023.02.21"]
[WhiteClock "0:00:10"]
[BlackClock "0:00:05"]

1. d4 {[%clk 0:03:00]}  d5 {[%clk 0:02:59]} 2. c4 {[%clk 0:02:57]}  e5 {[%clk 0:03:00]} 3. dxe5 {[%clk 0:02:56]}  d4 {[%clk 0:03:00]} 4. Nf3 {[%clk 0:02:56]}  Nc6 {[%clk 0:03:00]} 5. g3 {[%clk 0:02:56]}  Be6 {[%clk 0:03:00]} 6. Nbd2 {[%clk 0:02:55]}  Qd7 {[%clk 0:02:59]} 7. Bg2 {[%clk 0:02:56]}  h5 {[%clk 0:02:54]} 8. h4 {[%clk 0:02:55]}  Nh6 {[%clk 0:02:53]} 9. O-O {[%clk 0:02:55]}  Ng4 {[%clk 0:02:53]} 10. b3 {[%clk 0:02:50]}  O-O-O {[%clk 0:02:52]} 11. Bb2 {[%clk 0:02:50]}  Bf5 {[%clk 0:02:28]} 12. Rc1 {[%clk 0:02:39]}  Ngxe5 {[%clk 0:02:06]} 13. Nxe5 {[%clk 0:02:40]}  Nxe5 {[%clk 0:02:05]} 14. Nf3 {[%clk 0:02:39]}  Nxf3+ {[%clk 0:02:04]} 15. Bxf3 {[%clk 0:02:39]}  g5 {[%clk 0:01:52]} 16. hxg5 {[%clk 0:02:34]}  h4 {[%clk 0:01:51]} 17. Qd2 {[%clk 0:02:28]}  hxg3 {[%clk 0:01:47]} 18. fxg3 {[%clk 0:02:29]}  Bc5 {[%clk 0:01:46]} 19. Qf4 {[%clk 0:02:18]}  d3+ {[%clk 0:01:27]} 20. e3 {[%clk 0:02:19]}  d2 {[%clk 0:01:27]} 21. Rcd1 {[%clk 0:02:14]}  Qd3 {[%clk 0:01:16]} 22. Qxf5+ {[%clk 0:01:51]}  Qxf5 {[%clk 0:01:15]} 23. Bxb7+ {[%clk 0:01:51]}  Kxb7 {[%clk 0:01:16]} 24. Rxf5 {[%clk 0:01:51]}  Bxe3+ {[%clk 0:01:12]} 25. Kg2 {[%clk 0:01:50]}  Rhe8 {[%clk 0:01:08]} 26. Bc3 {[%clk 0:01:42]}  Rd3 {[%clk 0:00:55]} 27. Ba5 {[%clk 0:01:41]}  Bb6 {[%clk 0:00:43]} 28. Bxb6 {[%clk 0:01:22]}  axb6 {[%clk 0:00:39]} 29. Rf2 {[%clk 0:01:07]}  Ree3 {[%clk 0:00:35]} 30. Rdxd2 {[%clk 0:00:57]}  Rxg3+ {[%clk 0:00:34]} 31. Kh2 {[%clk 0:00:48]}  Rh3+ {[%clk 0:00:33]} 32. Kg2 {[%clk 0:00:48]}  Rdg3+ {[%clk 0:00:26]} 33. Kf1 {[%clk 0:00:48]}  Rh1+ {[%clk 0:00:27]} 34. Ke2 {[%clk 0:00:46]}  Rxg5 {[%clk 0:00:28]} 35. Rxf7 {[%clk 0:00:42]}  Rh2+ {[%clk 0:00:23]} 36. Rf2 {[%clk 0:00:40]}  Re5+ {[%clk 0:00:23]} 37. Kd1 {[%clk 0:00:38]}  Rh1+ {[%clk 0:00:22]} 38. Kc2 {[%clk 0:00:38]}  Ree1 {[%clk 0:00:23]} 39. Kb2 {[%clk 0:00:37]}  Rb1+ {[%clk 0:00:23]} 40. Ka3 {[%clk 0:00:37]}  c5 {[%clk 0:00:21]} 41. Rf6 {[%clk 0:00:35]}  Rh8 {[%clk 0:00:18]} 42. Rd7+ {[%clk 0:00:31]}  Ka6 {[%clk 0:00:18]} 43. Rdd6 {[%clk 0:00:23]}  Rb8 {[%clk 0:00:18]} 44. Rf7 {[%clk 0:00:19]}  Ra8 {[%clk 0:00:13]} 45. Rdd7 {[%clk 0:00:16]}  b5 {[%clk 0:00:07]} 46. cxb5+ {[%clk 0:00:10]}  Kb6+ {[%clk 0:00:04]} 47. Ra7 {[%clk 0:00:08]}  Rxa7+ {[%clk 0:00:05]} 48. Rxa7 {[%clk 0:00:08]}  Kxa7 {[%clk 0:00:06]} 49. Ka4 {[%clk 0:00:09]}  Kb6 {[%clk 0:00:06]} 50. a3 {[%clk 0:00:09]}  Rb2 {[%clk 0:00:04]} 51. b4 {[%clk 0:00:09]}  cxb4 {[%clk 0:00:05]} 52. axb4 {[%clk 0:00:10]}  Rb1 {[%clk 0:00:05]} 0-1


[Site "https://www.chess.com"]

[Event "Titled Tuesday Blitz February 21 Early 2023"]
[White "Andreev, Eduard"]
[Black "Sai Han Thiha"]
[WhiteFideId "14103400"]
[BlackFideId "13012290"]
[WhiteElo "2413"]
[BlackElo "2070"]
[Result "1-0"]
[Round "06"]
[TimeControl "180+2"]
[Date "2023.02.21"]
[WhiteClock "0:00:14"]
[BlackClock "0:00:07"]

1. d4 {[%clk 0:03:00]}  Nf6 {[%clk 0:03:00]} 2. c4 {[%clk 0:03:00]}  e6 {[%clk 0:03:00]} 3. g3 {[%clk 0:02:59]}  d5 {[%clk 0:03:00]} 4. Nf3 {[%clk 0:02:58]}  dxc4 {[%clk 0:03:01]} 5. Bg2 {[%clk 0:02:56]}  c5 {[%clk 0:03:01]} 6. O-O {[%clk 0:02:50]}  Nc6 {[%clk 0:03:01]} 7. Qa4 {[%clk 0:02:48]}  Bd7 {[%clk 0:03:00]} 8. Qxc4 {[%clk 0:02:44]}  cxd4 {[%clk 0:03:01]} 9. Nxd4 {[%clk 0:02:42]}  Rc8 {[%clk 0:03:01]} 10. Nxc6 {[%clk 0:02:39]}  Bxc6 {[%clk 0:03:02]} 11. Bxc6+ {[%clk 0:02:31]}  Rxc6 {[%clk 0:03:02]} 12. Qa4 {[%clk 0:02:29]}  Be7 {[%clk 0:02:44]} 13. Nc3 {[%clk 0:02:29]}  O-O {[%clk 0:02:44]} 14. Be3 {[%clk 0:02:27]}  a6 {[%clk 0:02:43]} 15. Rfd1 {[%clk 0:02:24]}  Qc8 {[%clk 0:02:37]} 16. Rac1 {[%clk 0:02:23]}  Rd8 {[%clk 0:02:29]} 17. Rxd8+ {[%clk 0:02:14]}  Qxd8 {[%clk 0:02:30]} 18. Rd1 {[%clk 0:02:14]}  Qc8 {[%clk 0:02:27]} 19. Qb3 {[%clk 0:01:59]}  h6 {[%clk 0:02:23]} 20. a4 {[%clk 0:01:58]}  Nd7 {[%clk 0:02:21]} 21. Ne4 {[%clk 0:01:54]}  Nc5 {[%clk 0:02:12]} 22. Bxc5 {[%clk 0:01:46]}  Bxc5 {[%clk 0:02:13]} 23. Nxc5 {[%clk 0:01:47]}  Rxc5 {[%clk 0:02:14]} 24. Qb6 {[%clk 0:01:41]}  Rc6 {[%clk 0:01:32]} 25. Qe3 {[%clk 0:01:33]}  Rc4 {[%clk 0:01:23]} 26. b3 {[%clk 0:01:23]}  Rc3 {[%clk 0:01:23]} 27. Qb6 {[%clk 0:01:23]}  Rc6 {[%clk 0:01:15]} 28. Rd8+ {[%clk 0:01:21]}  Kh7 {[%clk 0:01:14]} 29. Qd4 {[%clk 0:01:20]}  Rc1+ {[%clk 0:01:13]} 30. Kg2 {[%clk 0:01:20]}  Qc6+ {[%clk 0:01:14]} 31. f3 {[%clk 0:01:08]}  Qc2 {[%clk 0:01:14]} 32. Qd3+ {[%clk 0:01:01]}  Qxd3 {[%clk 0:01:14]} 33. Rxd3 {[%clk 0:01:02]}  Rb1 {[%clk 0:01:08]} 34. Rd7 {[%clk 0:00:51]}  Rxb3 {[%clk 0:01:07]} 35. Rxf7 {[%clk 0:00:52]}  Kg6 {[%clk 0:01:05]} 36. Rc7 {[%clk 0:00:50]}  Rb4 {[%clk 0:01:00]} 37. a5 {[%clk 0:00:50]}  Kf6 {[%clk 0:00:58]} 38. g4 {[%clk 0:00:42]}  g5 {[%clk 0:00:52]} 39. Kg3 {[%clk 0:00:41]}  Rb2 {[%clk 0:00:51]} 40. e3 {[%clk 0:00:35]}  Rb3 {[%clk 0:00:48]} 41. e4 {[%clk 0:00:28]}  Rb5 {[%clk 0:00:33]} 42. h4 {[%clk 0:00:26]}  gxh4+ {[%clk 0:00:20]} 43. Kxh4 {[%clk 0:00:27]}  Kg6 {[%clk 0:00:17]} 44. f4 {[%clk 0:00:22]}  Rxa5 {[%clk 0:00:16]} 45. Rxb7 {[%clk 0:00:21]}  Ra4 {[%clk 0:00:17]} 46. f5+ {[%clk 0:00:21]}  Kf6 {[%clk 0:00:16]} 47. Rb6 {[%clk 0:00:19]}  Rxe4 {[%clk 0:00:03]} 48. Rxa6 {[%clk 0:00:19]}  Kf7 {[%clk 0:00:02]} 49. Rxe6 {[%clk 0:00:18]}  Ra4 {[%clk 0:00:02]} 50. Rxh6 {[%clk 0:00:17]}  Kg7 {[%clk 0:00:02]} 51. Rb6 {[%clk 0:00:18]}  Kf7 {[%clk 0:00:03]} 52. Kg5 {[%clk 0:00:18]}  Ra7 {[%clk 0:00:02]} 53. Rh6 {[%clk 0:00:15]}  Kg7 {[%clk 0:00:01]} 54. f6+ {[%clk 0:00:15]}  Kg8 {[%clk 0:00:01]} 55. Kg6 {[%clk 0:00:15]}  Rb7 {[%clk 0:00:01]} 56. g5 {[%clk 0:00:14]}  Ra7 {[%clk 0:00:02]} 57. f7+ {[%clk 0:00:10]}  Rxf7 {[%clk 0:00:02]} 58. Rh8+ {[%clk 0:00:11]}  Kxh8 {[%clk 0:00:03]} 59. Kxf7 {[%clk 0:00:11]}  Kh7 {[%clk 0:00:04]} 60. g6+ {[%clk 0:00:12]}  Kh8 {[%clk 0:00:05]} 61. g7+ {[%clk 0:00:13]}  Kh7 {[%clk 0:00:06]} 62. g8=Q+ {[%clk 0:00:14]}  Kh6 {[%clk 0:00:07]} 63. Qg6# {[%clk 0:00:14]} 1-0


[Site "https://www.chess.com"]

[Event "Titled Tuesday Blitz February 21 Early 2023"]
[White "Sharapov, Evgeny"]
[Black "Cunha, Lucas Aguiar"]
[WhiteFideId "14103133"]
[BlackFideId "2125404"]
[WhiteElo "2375"]
[BlackElo "2309"]
[Result "1-0"]
[Round "06"]
[TimeControl "180+2"]
[Date "2023.02.21"]
[WhiteClock "0:01:14"]
[BlackClock "0:00:52"]

1. e4 {[%clk 0:02:59]}  c5 {[%clk 0:02:59]} 2. Nf3 {[%clk 0:02:59]}  e6 {[%clk 0:02:59]} 3. d4 {[%clk 0:02:59]}  cxd4 {[%clk 0:03:00]} 4. Nxd4 {[%clk 0:03:00]}  Nc6 {[%clk 0:03:00]} 5. Nb5 {[%clk 0:02:59]}  d6 {[%clk 0:03:00]} 6. Bf4 {[%clk 0:02:59]}  e5 {[%clk 0:03:00]} 7. Be3 {[%clk 0:02:59]}  a6 {[%clk 0:03:00]} 8. N5c3 {[%clk 0:02:58]}  Nf6 {[%clk 0:03:01]} 9. Bg5 {[%clk 0:02:56]}  h6 {[%clk 0:02:58]} 10. Bxf6 {[%clk 0:02:56]}  Qxf6 {[%clk 0:02:59]} 11. Nd5 {[%clk 0:02:56]}  Qd8 {[%clk 0:03:00]} 12. Nbc3 {[%clk 0:02:55]}  g6 {[%clk 0:02:56]} 13. a4 {[%clk 0:02:54]}  Bg7 {[%clk 0:02:55]} 14. Bd3 {[%clk 0:02:53]}  O-O {[%clk 0:02:54]} 15. O-O {[%clk 0:02:53]}  Be6 {[%clk 0:02:53]} 16. Kh1 {[%clk 0:02:51]}  Rc8 {[%clk 0:02:51]} 17. Qd2 {[%clk 0:02:45]}  f5 {[%clk 0:02:36]} 18. f3 {[%clk 0:02:46]}  Kh7 {[%clk 0:02:32]} 19. Rfe1 {[%clk 0:02:39]}  Qh4 {[%clk 0:02:22]} 20. Ne3 {[%clk 0:02:29]}  Kh8 {[%clk 0:02:18]} 21. Bc4 {[%clk 0:02:22]}  Bxc4 {[%clk 0:02:10]} 22. Nxc4 {[%clk 0:02:21]}  Rcd8 {[%clk 0:02:09]} 23. Ne3 {[%clk 0:02:20]}  h5 {[%clk 0:02:04]} 24. Ned5 {[%clk 0:02:13]}  Nd4 {[%clk 0:01:57]} 25. Ne2 {[%clk 0:02:07]}  Ne6 {[%clk 0:01:43]} 26. Ng3 {[%clk 0:01:58]}  Kh7 {[%clk 0:01:37]} 27. c3 {[%clk 0:01:58]}  Bh6 {[%clk 0:01:34]} 28. Qc2 {[%clk 0:01:57]}  f4 {[%clk 0:01:28]} 29. Nf1 {[%clk 0:01:47]}  g5 {[%clk 0:01:27]} 30. Ne7 {[%clk 0:01:38]}  g4 {[%clk 0:01:22]} 31. Nf5 {[%clk 0:01:38]}  Qg5 {[%clk 0:01:17]} 32. Rad1 {[%clk 0:01:27]}  gxf3 {[%clk 0:01:09]} 33. gxf3 {[%clk 0:01:26]}  Rg8 {[%clk 0:01:09]} 34. Qf2 {[%clk 0:01:24]}  Bf8 {[%clk 0:01:08]} 35. Nd2 {[%clk 0:01:21]}  Nc5 {[%clk 0:01:02]} 36. Rg1 {[%clk 0:01:20]}  Nd3 {[%clk 0:00:52]} 37. Qe2 {[%clk 0:01:14]} 1-0


[Site "https://www.chess.com"]